[Event "*** Titled Tuesday Blitz"]
[Site "Chess.com"]
[Date "2019.03.05"]
[Round "1"]
[White "CzechmVIII"]
[Black "7Madman"]
[Result "0-1"]
[WhiteElo "2108"]
[BlackElo "2515"]
[TimeControl "180+2"]
[EndTime "13:08:28 PST"]
[Termination "7Madman won by resignation"]

1. e4 {[%clk 0:03:00.7]} 1... c6 {[%clk 0:02:59.8]} 2. d4 {[%clk 0:03:00.1]}
2... d5 {[%clk 0:03:01.7]} 3. e5 {[%clk 0:03:01.1]} 3... Bf5 {[%clk 0:03:02.2]}
4. Nc3 {[%clk 0:03:02]} 4... e6 {[%clk 0:03:03.1]} 5. g4 {[%clk 0:03:03]} 5...
Bg6 {[%clk 0:03:04.6]} 6. Nge2 {[%clk 0:03:04.1]} 6... f6 {[%clk 0:03:06.2]} 7.
f4 {[%clk 0:03:01.6]} 7... fxe5 {[%clk 0:03:06.8]} 8. dxe5 {[%clk 0:03:02.3]}
8... Qh4+ {[%clk 0:02:56.9]} 9. Ng3 {[%clk 0:02:56.9]} 9... Bc5 {[%clk
0:02:56.4]} 10. Bg2 {[%clk 0:02:35.1]} 10... Ne7 {[%clk 0:02:56.2]} 11. Na4
{[%clk 0:02:32.2]} 11... Bb4+ {[%clk 0:02:46]} 12. c3 {[%clk 0:02:31.7]} 12...
Ba5 {[%clk 0:02:47.5]} 13. Nc5 {[%clk 0:02:29]} 13... Bf7 {[%clk 0:02:41.2]} 14.
Nxb7 {[%clk 0:02:29.5]} 14... Bc7 {[%clk 0:02:40.3]} 15. Nd6+ {[%clk 0:02:27.1]}
15... Kf8 {[%clk 0:02:39.2]} 16. O-O {[%clk 0:02:13.6]} 16... h5 {[%clk
0:02:31.6]} 17. Nxf7 {[%clk 0:02:05.2]} 17... Kxf7 {[%clk 0:02:28.2]} 18. g5
{[%clk 0:02:05]} 18... Bb6+ {[%clk 0:02:22.8]} 19. Kh1 {[%clk 0:02:05.4]} 19...
g6 {[%clk 0:02:17.3]} 20. Qe2 {[%clk 0:01:56.9]} 20... Nd7 {[%clk 0:02:16.5]}
21. Be3 {[%clk 0:01:55.4]} 21... Nf5 {[%clk 0:02:10.8]} 22. Nxf5 {[%clk
0:01:53.6]} 22... gxf5 {[%clk 0:02:11.5]} 23. c4 {[%clk 0:01:40.8]} 23... Rhd8
{[%clk 0:01:31.6]} 24. Rac1 {[%clk 0:01:35]} 24... d4 {[%clk 0:01:14.7]} 25. Bf2
{[%clk 0:01:29.9]} 25... Qxf4 {[%clk 0:01:15.3]} 26. Qxh5+ {[%clk 0:01:31]}
26... Kg8 {[%clk 0:01:03.4]} 27. g6 {[%clk 0:01:30.1]} 27... Nf8 {[%clk
0:00:59.7]} 28. Bh4 {[%clk 0:01:24.6]} 28... Qg4 {[%clk 0:00:50.5]} 29. Qxg4
{[%clk 0:01:15.3]} 29... fxg4 {[%clk 0:00:50.7]} 30. Bxd8 {[%clk 0:01:13.8]}
30... Rxd8 {[%clk 0:00:52.6]} 31. Bxc6 {[%clk 0:01:12.4]} 31... Nxg6 {[%clk
0:00:53]} 32. Rf6 {[%clk 0:01:08.2]} 32... Nxe5 {[%clk 0:00:52.1]} 33. Rxe6
{[%clk 0:01:09.5]} 33... Bc7 {[%clk 0:00:36]} 34. Bd5 {[%clk 0:01:06.3]} 34...
Kh8 {[%clk 0:00:20.6]} 35. Kg2 {[%clk 0:00:45.4]} 35... d3 {[%clk 0:00:22.1]}
36. Rd1 {[%clk 0:00:46.2]} 36... Rf8 {[%clk 0:00:21.4]} 37. Rxd3 {[%clk
0:00:45.2]} 37... Nxd3 {[%clk 0:00:20.2]} 38. Re7 {[%clk 0:00:41.3]} 38... Rf2+
{[%clk 0:00:20.8]} 39. Kg1 {[%clk 0:00:40.4]} 39... Bxh2+ {[%clk 0:00:22.3]} 40.
Kh1 {[%clk 0:00:40.5]} 40... g3 {[%clk 0:00:21.3]} 41. Be4 {[%clk 0:00:38.7]}
41... Nf4 {[%clk 0:00:21.8]} 42. Bg2 {[%clk 0:00:21.9]} 42... Rxg2 {[%clk
0:00:18.8]} 0-1

[Event "*** Titled Tuesday Blitz"]
[Site "Chess.com"]
[Date "2019.03.05"]
[Round "1"]
[White "Vamostodorecto"]
[Black "arna"]
[Result "1-0"]
[WhiteElo "2522"]
[BlackElo "2125"]
[TimeControl "180+2"]
[EndTime "13:08:29 PST"]
[Termination "Vamostodorecto won by resignation"]

1. d4 {[%clk 0:02:59.9]} 1... d5 {[%clk 0:02:43.4]} 2. c4 {[%clk 0:03:00.7]}
2... e6 {[%clk 0:02:43]} 3. Nc3 {[%clk 0:03:00.6]} 3... c6 {[%clk 0:02:43.7]} 4.
Nf3 {[%clk 0:03:00.1]} 4... dxc4 {[%clk 0:02:42.3]} 5. e3 {[%clk 0:02:59.5]}
5... b5 {[%clk 0:02:41.9]} 6. a4 {[%clk 0:03:01.1]} 6... Bb4 {[%clk 0:02:42.7]}
7. axb5 {[%clk 0:02:55.9]} 7... cxb5 {[%clk 0:02:41.9]} 8. Bd2 {[%clk
0:02:57.4]} 8... Bxc3 {[%clk 0:02:36.2]} 9. Bxc3 {[%clk 0:02:59.3]} 9... a5
{[%clk 0:02:36.3]} 10. b3 {[%clk 0:02:57.1]} 10... Bb7 {[%clk 0:02:36.9]} 11.
bxc4 {[%clk 0:02:55.4]} 11... b4 {[%clk 0:02:36.9]} 12. Bb2 {[%clk 0:02:47.1]}
12... Nf6 {[%clk 0:02:37.2]} 13. Be2 {[%clk 0:02:47.8]} 13... O-O {[%clk
0:02:30.2]} 14. O-O {[%clk 0:02:47.9]} 14... Nbd7 {[%clk 0:02:25.9]} 15. c5
{[%clk 0:02:34.7]} 15... Qc7 {[%clk 0:02:23.5]} 16. Bb5 {[%clk 0:02:26]} 16...
Bc6 {[%clk 0:02:05.7]} 17. Bxc6 {[%clk 0:02:24.8]} 17... Qxc6 {[%clk 0:02:05.7]}
18. Qa4 {[%clk 0:02:17.8]} 18... Qd5 {[%clk 0:01:45.5]} 19. Rfc1 {[%clk
0:02:13.9]} 19... Rfc8 {[%clk 0:01:31.6]} 20. Qb5 {[%clk 0:02:09.9]} 20... Rcb8
{[%clk 0:00:49.9]} 21. Qd3 {[%clk 0:01:53.8]} 21... a4 {[%clk 0:00:38.2]} 22. c6
{[%clk 0:01:51.4]} 22... Nb6 {[%clk 0:00:34.7]} 23. Rc5 {[%clk 0:01:50.3]} 23...
Qe4 {[%clk 0:00:29.2]} 24. Qb5 {[%clk 0:01:38.1]} 24... a3 {[%clk 0:00:16.6]}
25. c7 {[%clk 0:01:37.3]} 25... Rc8 {[%clk 0:00:12.3]} 26. Bc1 {[%clk
0:01:24.1]} 26... Nbd5 {[%clk 0:00:08]} 27. Nd2 {[%clk 0:01:16.1]} 27... Qg6
{[%clk 0:00:06.8]} 28. Nc4 {[%clk 0:01:00]} 28... Nc3 {[%clk 0:00:06.4]} 29.
Qxb4 {[%clk 0:00:57]} 29... Nfd5 {[%clk 0:00:07]} 30. Qb3 {[%clk 0:00:51.5]}
30... Ne2+ {[%clk 0:00:06.9]} 31. Kf1 {[%clk 0:00:50.9]} 31... Qh5 {[%clk
0:00:07.1]} 32. Rxa3 {[%clk 0:00:40.8]} 32... Rxa3 {[%clk 0:00:06.7]} 33. Bxa3
{[%clk 0:00:42.7]} 33... Ndc3 {[%clk 0:00:07]} 34. Rxh5 {[%clk 0:00:33.3]} 1-0

[Event "*** Titled Tuesday Blitz"]
[Site "Chess.com"]
[Date "2019.03.05"]
[Round "1"]
[White "SolidAsARook"]
[Black "SF-96"]
[Result "0-1"]
[WhiteElo "2204"]
[BlackElo "2573"]
[TimeControl "180+2"]
[EndTime "13:08:30 PST"]
[Termination "SF-96 won by resignation"]

1. c4 {[%clk 0:03:01.2]} 1... Nf6 {[%clk 0:03:00.9]} 2. g3 {[%clk 0:03:02]} 2...
g6 {[%clk 0:03:01.9]} 3. Bg2 {[%clk 0:03:03.3]} 3... d5 {[%clk 0:03:03]} 4. cxd5
{[%clk 0:03:03.2]} 4... Nxd5 {[%clk 0:03:04.4]} 5. Nf3 {[%clk 0:03:04.5]} 5...
Bg7 {[%clk 0:03:05.4]} 6. O-O {[%clk 0:03:05.5]} 6... O-O {[%clk 0:03:07]} 7.
Nc3 {[%clk 0:03:06.4]} 7... Nb6 {[%clk 0:03:06]} 8. a4 {[%clk 0:02:58.6]} 8...
a5 {[%clk 0:02:52.3]} 9. d4 {[%clk 0:02:58.1]} 9... Nc6 {[%clk 0:02:51.4]} 10.
Nb5 {[%clk 0:02:57.3]} 10... Bf5 {[%clk 0:02:44]} 11. Re1 {[%clk 0:02:12]} 11...
Be4 {[%clk 0:02:42.1]} 12. e3 {[%clk 0:01:53.1]} 12... Nb4 {[%clk 0:02:38.8]}
13. Re2 {[%clk 0:01:30.3]} 13... c6 {[%clk 0:02:12.1]} 14. Nc3 {[%clk
0:01:25.2]} 14... Bd3 {[%clk 0:02:13.4]} 15. Rd2 {[%clk 0:01:23.2]} 15... Ba6
{[%clk 0:02:14.2]} 16. b3 {[%clk 0:01:12.7]} 16... Qc7 {[%clk 0:02:07.8]} 17.
Bb2 {[%clk 0:01:11.9]} 17... Rfd8 {[%clk 0:02:06.4]} 18. Rc1 {[%clk 0:01:10.9]}
18... Rac8 {[%clk 0:02:07.2]} 19. Ne4 {[%clk 0:00:49.4]} 19... Nd7 {[%clk
0:01:52.5]} 20. Nc5 {[%clk 0:00:49.6]} 20... Nxc5 {[%clk 0:01:52.2]} 21. Rxc5
{[%clk 0:00:51.3]} 21... Qb6 {[%clk 0:01:40.1]} 22. Ne1 {[%clk 0:00:51.2]} 22...
Rd7 {[%clk 0:01:35.2]} 23. Nc2 {[%clk 0:00:43.6]} 23... Rcd8 {[%clk 0:01:13.2]}
24. Bc3 {[%clk 0:00:34.8]} 24... e6 {[%clk 0:00:51.9]} 25. Na3 {[%clk
0:00:28.3]} 25... Bf8 {[%clk 0:00:48.8]} 26. Nc4 {[%clk 0:00:26]} 26... Bxc4
{[%clk 0:00:36.7]} 27. Rxc4 {[%clk 0:00:27.9]} 27... Nd5 {[%clk 0:00:37.9]} 28.
Qc2 {[%clk 0:00:23.3]} 28... Nxc3 {[%clk 0:00:38]} 29. Rxc3 {[%clk 0:00:17.6]}
29... Bb4 {[%clk 0:00:38.8]} 30. Rd1 {[%clk 0:00:18.8]} 30... Bxc3 {[%clk
0:00:39.8]} 31. Qxc3 {[%clk 0:00:20.7]} 31... Qb4 {[%clk 0:00:36.1]} 32. Qd3
{[%clk 0:00:21.4]} 32... c5 {[%clk 0:00:35.3]} 33. Rc1 {[%clk 0:00:19.9]} 33...
cxd4 {[%clk 0:00:35]} 34. e4 {[%clk 0:00:21.8]} 34... e5 {[%clk 0:00:33]} 35.
Rc4 {[%clk 0:00:21.6]} 35... Qd6 {[%clk 0:00:32.9]} 36. h4 {[%clk 0:00:22.3]}
36... Rc7 {[%clk 0:00:33.4]} 37. Bf1 {[%clk 0:00:22.2]} 37... Rxc4 {[%clk
0:00:31.7]} 38. Qxc4 {[%clk 0:00:24.1]} 38... Qc6 {[%clk 0:00:32.7]} 39. Qd3
{[%clk 0:00:19.6]} 39... Qc3 {[%clk 0:00:33.4]} 40. Qd1 {[%clk 0:00:19.8]} 40...
d3 {[%clk 0:00:34.8]} 41. Kg2 {[%clk 0:00:20.8]} 41... d2 {[%clk 0:00:34.9]} 42.
Be2 {[%clk 0:00:22]} 42... Qc1 {[%clk 0:00:34.7]} 43. Bf3 {[%clk 0:00:23.3]}
43... Rc8 {[%clk 0:00:34.4]} 44. Kf1 {[%clk 0:00:24.5]} 44... Rc3 {[%clk
0:00:32.6]} 45. Be2 {[%clk 0:00:25.2]} 45... Rxb3 {[%clk 0:00:31.9]} 46. Kg2
{[%clk 0:00:24.7]} 0-1

[Event "*** Titled Tuesday Blitz"]
[Site "Chess.com"]
[Date "2019.03.05"]
[Round "1"]
[White "Eliwood44"]
[Black "raviteja81293"]
[Result "0-1"]
[WhiteElo "2210"]
[BlackElo "2574"]
[TimeControl "180+2"]
[EndTime "13:08:36 PST"]
[Termination "raviteja81293 won by resignation"]

1. d4 {[%clk 0:03:00.8]} 1... d5 {[%clk 0:03:00.6]} 2. Nf3 {[%clk 0:02:59.1]}
2... Nf6 {[%clk 0:03:00.8]} 3. c4 {[%clk 0:02:59.5]} 3... c6 {[%clk 0:03:01.7]}
4. Qc2 {[%clk 0:02:59.9]} 4... dxc4 {[%clk 0:03:02.1]} 5. e4 {[%clk 0:02:59.3]}
5... Bg4 {[%clk 0:02:54.3]} 6. Bxc4 {[%clk 0:02:55.8]} 6... Bxf3 {[%clk
0:02:54.3]} 7. gxf3 {[%clk 0:02:55]} 7... Qxd4 {[%clk 0:02:54.8]} 8. Qb3 {[%clk
0:02:46.2]} 8... e6 {[%clk 0:02:38.9]} 9. Be3 {[%clk 0:02:27.2]} 9... Qd7 {[%clk
0:02:35.4]} 10. Nc3 {[%clk 0:02:26.7]} 10... Be7 {[%clk 0:02:23]} 11. Rd1 {[%clk
0:02:18.9]} 11... Qc7 {[%clk 0:02:24]} 12. O-O {[%clk 0:02:07]} 12... O-O {[%clk
0:02:22.5]} 13. Kh1 {[%clk 0:02:07.9]} 13... Nbd7 {[%clk 0:02:21.5]} 14. Rg1
{[%clk 0:02:06.8]} 14... Ne5 {[%clk 0:02:21.5]} 15. Be2 {[%clk 0:02:06.2]} 15...
Ng6 {[%clk 0:02:22.6]} 16. Rg3 {[%clk 0:01:54.1]} 16... Nh5 {[%clk 0:02:21.1]}
17. Rh3 {[%clk 0:01:52.7]} 17... Nhf4 {[%clk 0:02:22.1]} 18. Rg3 {[%clk
0:01:51.1]} 18... Bh4 {[%clk 0:02:19.7]} 19. Rg4 {[%clk 0:01:46.6]} 19... h5
{[%clk 0:02:16.4]} 20. Bxf4 {[%clk 0:01:44.6]} 20... Nxf4 {[%clk 0:02:10.4]} 21.
Rxh4 {[%clk 0:01:44.7]} 21... g5 {[%clk 0:02:06.6]} 22. Rg1 {[%clk 0:01:44.2]}
22... Qe5 {[%clk 0:01:47.6]} 23. Rxh5 {[%clk 0:01:38.8]} 23... Nxh5 {[%clk
0:01:47.5]} 24. h4 {[%clk 0:01:23.4]} 24... f6 {[%clk 0:01:38.7]} 25. Qxb7
{[%clk 0:01:20.9]} 25... Rab8 {[%clk 0:01:35.5]} 26. Qxc6 {[%clk 0:01:20.3]}
26... Rf7 {[%clk 0:01:32.2]} 27. Bc4 {[%clk 0:01:15.5]} 27... Nf4 {[%clk
0:01:30.3]} 28. Bb3 {[%clk 0:01:04.5]} 28... Rh7 {[%clk 0:01:29.6]} 29. Rg4
{[%clk 0:01:03.9]} 29... Rd8 {[%clk 0:01:23.9]} 30. Qb5 {[%clk 0:00:25.7]} 30...
Qxb5 {[%clk 0:01:02.5]} 31. Nxb5 {[%clk 0:00:25]} 31... Rxh4+ {[%clk 0:01:04.2]}
32. Rxh4 {[%clk 0:00:25.4]} 32... gxh4 {[%clk 0:01:06.1]} 33. Nc7 {[%clk
0:00:25.6]} 33... Kf7 {[%clk 0:01:01.1]} 34. Kh2 {[%clk 0:00:26.5]} 34... Rd2
{[%clk 0:01:00.6]} 35. Kg1 {[%clk 0:00:27.6]} 35... Rxb2 {[%clk 0:00:59.7]} 36.
Nb5 {[%clk 0:00:28.4]} 36... h3 {[%clk 0:00:59.8]} 37. Nxa7 {[%clk 0:00:25.9]}
37... Rb1+ {[%clk 0:00:59.2]} 38. Kh2 {[%clk 0:00:25.8]} 38... Rf1 {[%clk
0:00:57.8]} 39. Kg3 {[%clk 0:00:26]} 39... Rxf2 {[%clk 0:00:55.9]} 40. Kxf2
{[%clk 0:00:17.8]} 40... h2 {[%clk 0:00:57]} 41. Bxe6+ {[%clk 0:00:14.7]} 41...
Kxe6 {[%clk 0:00:57.1]} 42. Nb5 {[%clk 0:00:16.2]} 42... h1=Q {[%clk 0:00:57.7]}
43. Nd4+ {[%clk 0:00:16.9]} 43... Kf7 {[%clk 0:00:58.7]} 0-1

[Event "*** Titled Tuesday Blitz"]
[Site "Chess.com"]
[Date "2019.03.05"]
[Round "1"]
[White "albi1999"]
[Black "sergoy"]
[Result "0-1"]
[WhiteElo "2421"]
[BlackElo "2835"]
[TimeControl "180+2"]
[EndTime "13:08:39 PST"]
[Termination "sergoy won by resignation"]

1. d4 {[%clk 0:03:00]} 1... Nf6 {[%clk 0:03:00]} 2. c4 {[%clk 0:03:00.5]} 2...
e6 {[%clk 0:03:01.1]} 3. Nf3 {[%clk 0:03:01.1]} 3... d5 {[%clk 0:03:02.3]} 4. g3
{[%clk 0:03:02.3]} 4... Bb4+ {[%clk 0:03:03.1]} 5. Bd2 {[%clk 0:03:02.7]} 5...
Be7 {[%clk 0:03:04.6]} 6. Bg2 {[%clk 0:03:03.7]} 6... O-O {[%clk 0:03:05.7]} 7.
O-O {[%clk 0:03:05.6]} 7... c6 {[%clk 0:03:06.1]} 8. Qc2 {[%clk 0:03:07]} 8...
b6 {[%clk 0:03:05.2]} 9. Rd1 {[%clk 0:03:07.1]} 9... Ba6 {[%clk 0:02:57.3]} 10.
b3 {[%clk 0:03:07]} 10... Nbd7 {[%clk 0:02:58.3]} 11. Bc1 {[%clk 0:03:07.8]}
11... Rc8 {[%clk 0:02:59.2]} 12. Bb2 {[%clk 0:03:06.5]} 12... c5 {[%clk
0:02:59.7]} 13. Nc3 {[%clk 0:03:06.5]} 13... cxd4 {[%clk 0:02:55.1]} 14. Nxd4
{[%clk 0:03:05.2]} 14... e5 {[%clk 0:02:43.5]} 15. Nf5 {[%clk 0:03:04.5]} 15...
d4 {[%clk 0:02:44.8]} 16. Ne4 {[%clk 0:02:58]} 16... b5 {[%clk 0:02:34.6]} 17.
Ned6 {[%clk 0:02:22.7]} 17... Rc7 {[%clk 0:02:25.2]} 18. Ba3 {[%clk 0:02:10.4]}
18... bxc4 {[%clk 0:02:10.3]} 19. bxc4 {[%clk 0:02:10.1]} 19... Nc5 {[%clk
0:02:06.2]} 20. Nxe7+ {[%clk 0:02:06.4]} 20... Qxe7 {[%clk 0:02:05.7]} 21. Nf5
{[%clk 0:02:06.6]} 21... Qe6 {[%clk 0:02:04.5]} 22. Bh3 {[%clk 0:02:02.2]} 22...
Kh8 {[%clk 0:01:54.7]} 23. Kg2 {[%clk 0:01:33.6]} 23... Bc8 {[%clk 0:01:45.5]}
24. Qd2 {[%clk 0:01:22.9]} 24... Nfe4 {[%clk 0:01:37.8]} 25. Qa5 {[%clk
0:01:20.5]} 25... Rc6 {[%clk 0:01:32.4]} 26. f3 {[%clk 0:01:17.5]} 26... Ra6
{[%clk 0:01:32.8]} 27. Qb4 {[%clk 0:01:06.9]} 27... Ra4 {[%clk 0:00:59.5]} 28.
Qb2 {[%clk 0:01:05.5]} 28... Qc6 {[%clk 0:01:00.2]} 29. fxe4 {[%clk 0:00:53.5]}
29... Qxe4+ {[%clk 0:01:00.9]} 30. Kg1 {[%clk 0:00:52.5]} 30... Bxf5 {[%clk
0:00:36.8]} 31. Bxf5 {[%clk 0:00:51.2]} 31... Qe3+ {[%clk 0:00:37.9]} 32. Kh1
{[%clk 0:00:42.3]} 32... Qxa3 {[%clk 0:00:39]} 33. Qb5 {[%clk 0:00:37.5]} 33...
g6 {[%clk 0:00:29]} 34. Bc2 {[%clk 0:00:35]} 34... Ra6 {[%clk 0:00:28.7]} 35.
Rd3 {[%clk 0:00:15.2]} 35... Nxd3 {[%clk 0:00:28.8]} 36. Bxd3 {[%clk 0:00:15.8]}
36... Ra5 {[%clk 0:00:28]} 37. Qd7 {[%clk 0:00:15.5]} 37... Kg7 {[%clk
0:00:27.9]} 38. Rf1 {[%clk 0:00:16.6]} 38... Qc5 {[%clk 0:00:23.8]} 39. h4
{[%clk 0:00:16.6]} 39... Ra6 {[%clk 0:00:23.8]} 40. Qg4 {[%clk 0:00:17]} 40...
f5 {[%clk 0:00:22.7]} 41. Qg5 {[%clk 0:00:18.4]} 41... h6 {[%clk 0:00:19.1]} 42.
Qd2 {[%clk 0:00:16.2]} 42... e4 {[%clk 0:00:20.5]} 0-1

[Event "*** Titled Tuesday Blitz"]
[Site "Chess.com"]
[Date "2019.03.05"]
[Round "1"]
[White "jamengrand"]
[Black "IakovUlivar"]
[Result "1-0"]
[WhiteElo "2164"]
[BlackElo "2512"]
[TimeControl "180+2"]
[EndTime "13:08:50 PST"]
[Termination "jamengrand won by resignation"]

1. e4 {[%clk 0:03:01.9]} 1... e5 {[%clk 0:03:00.3]} 2. Nf3 {[%clk 0:03:02.4]}
2... Nf6 {[%clk 0:03:01.2]} 3. Nc3 {[%clk 0:03:01.5]} 3... Nc6 {[%clk
0:03:01.4]} 4. d4 {[%clk 0:03:02.6]} 4... exd4 {[%clk 0:03:02.1]} 5. Nxd4 {[%clk
0:03:03.5]} 5... Bb4 {[%clk 0:03:03.2]} 6. Nxc6 {[%clk 0:03:04.4]} 6... bxc6
{[%clk 0:03:03.5]} 7. Bd3 {[%clk 0:03:05.6]} 7... O-O {[%clk 0:03:04.6]} 8. O-O
{[%clk 0:03:06]} 8... d5 {[%clk 0:03:06.1]} 9. exd5 {[%clk 0:03:07.3]} 9... cxd5
{[%clk 0:03:08]} 10. h3 {[%clk 0:03:08.5]} 10... c6 {[%clk 0:03:08.2]} 11. Qf3
{[%clk 0:03:09.5]} 11... Bd6 {[%clk 0:03:07.8]} 12. Bf4 {[%clk 0:03:09.8]} 12...
Re8 {[%clk 0:02:58.9]} 13. b3 {[%clk 0:03:09.3]} 13... Be5 {[%clk 0:02:26]} 14.
Bxe5 {[%clk 0:03:09.3]} 14... Rxe5 {[%clk 0:02:27.9]} 15. Rfe1 {[%clk
0:03:08.8]} 15... Qe7 {[%clk 0:02:25.3]} 16. Rxe5 {[%clk 0:03:00.4]} 16... Qxe5
{[%clk 0:02:27.2]} 17. Rd1 {[%clk 0:03:00.9]} 17... Bd7 {[%clk 0:02:07.5]} 18.
Na4 {[%clk 0:03:01]} 18... Re8 {[%clk 0:02:03.6]} 19. Nc5 {[%clk 0:02:53.5]}
19... Qd6 {[%clk 0:01:57.1]} 20. b4 {[%clk 0:02:52.7]} 20... a5 {[%clk
0:01:58.5]} 21. a3 {[%clk 0:02:53.3]} 21... axb4 {[%clk 0:01:59.6]} 22. axb4
{[%clk 0:02:54.2]} 22... g6 {[%clk 0:01:44]} 23. Ra1 {[%clk 0:02:40.1]} 23...
Kg7 {[%clk 0:01:36.6]} 24. Ra7 {[%clk 0:02:37.2]} 24... Bc8 {[%clk 0:01:25.7]}
25. c3 {[%clk 0:02:19.2]} 25... Re1+ {[%clk 0:01:19.6]} 26. Bf1 {[%clk
0:02:16.6]} 26... h5 {[%clk 0:01:09.7]} 27. Qg3 {[%clk 0:02:16.3]} 27... Qxg3
{[%clk 0:00:55.7]} 28. fxg3 {[%clk 0:02:18.2]} 28... Re3 {[%clk 0:00:40.4]} 29.
Rc7 {[%clk 0:02:15.2]} 29... Bf5 {[%clk 0:00:41.5]} 30. Rxc6 {[%clk 0:02:11.2]}
30... d4 {[%clk 0:00:31.1]} 31. cxd4 {[%clk 0:02:02.4]} 31... Nd5 {[%clk
0:00:29.6]} 32. b5 {[%clk 0:01:54.1]} 32... Re1 {[%clk 0:00:28.2]} 33. Kf2
{[%clk 0:01:54.3]} 33... Rb1 {[%clk 0:00:29.5]} 34. Bc4 {[%clk 0:01:53.6]} 34...
Rb2+ {[%clk 0:00:27]} 35. Kf3 {[%clk 0:01:53.1]} 35... Nb4 {[%clk 0:00:12.1]}
36. Rd6 {[%clk 0:01:45.8]} 36... Nc2 {[%clk 0:00:11.9]} 37. Be2 {[%clk
0:01:39.1]} 37... Rb4 {[%clk 0:00:06.8]} 38. d5 {[%clk 0:01:28.8]} 38... Nd4+
{[%clk 0:00:07.7]} 39. Ke3 {[%clk 0:01:29]} 39... Nc2+ {[%clk 0:00:08.1]} 40.
Kd2 {[%clk 0:01:27.3]} 40... Nd4 {[%clk 0:00:09.5]} 41. Kc3 {[%clk 0:01:26.4]}
41... Nxb5+ {[%clk 0:00:10.4]} 42. Kxb4 {[%clk 0:01:27.2]} 42... Nxd6 {[%clk
0:00:11.1]} 43. Bf3 {[%clk 0:01:26.7]} 43... Kf6 {[%clk 0:00:12.1]} 44. Na6
{[%clk 0:01:26.5]} 44... Ke5 {[%clk 0:00:13]} 45. Kc5 {[%clk 0:01:27.5]} 45...
Nb7+ {[%clk 0:00:09.5]} 46. Kc6 {[%clk 0:01:27.1]} 46... Na5+ {[%clk 0:00:10.8]}
47. Kb5 {[%clk 0:01:27.2]} 47... Nb7 {[%clk 0:00:12]} 48. Nb4 {[%clk 0:01:27.1]}
48... Bd7+ {[%clk 0:00:12.2]} 49. Kb6 {[%clk 0:01:27.6]} 49... Nd6 {[%clk
0:00:13.6]} 50. Nc6+ {[%clk 0:01:28.3]} 50... Bxc6 {[%clk 0:00:08.8]} 51. dxc6
{[%clk 0:01:30.2]} 51... f5 {[%clk 0:00:08.1]} 52. c7 {[%clk 0:01:29.9]} 52...
Nc8+ {[%clk 0:00:07.7]} 53. Kb7 {[%clk 0:01:28.8]} 53... Nd6+ {[%clk 0:00:09]}
54. Kb8 {[%clk 0:01:30.4]} 54... f4 {[%clk 0:00:09.1]} 55. g4 {[%clk 0:01:28.1]}
55... hxg4 {[%clk 0:00:09.7]} 56. hxg4 {[%clk 0:01:28.8]} 56... Kf6 {[%clk
0:00:09.5]} 57. c8=Q {[%clk 0:01:29.9]} 57... Nxc8 {[%clk 0:00:10.7]} 58. Kxc8
{[%clk 0:01:31.6]} 1-0

[Event "*** Titled Tuesday Blitz"]
[Site "Chess.com"]
[Date "2019.03.05"]
[Round "1"]
[White "GameOverBro"]
[Black "GrigorGrigorov"]
[Result "0-1"]
[WhiteElo "2424"]
[BlackElo "2839"]
[TimeControl "180+2"]
[EndTime "13:08:52 PST"]
[Termination "GrigorGrigorov won by resignation"]

1. e4 {[%clk 0:03:01.4]} 1... c6 {[%clk 0:03:00.9]} 2. Nc3 {[%clk 0:03:02]} 2...
d5 {[%clk 0:03:01.6]} 3. Nf3 {[%clk 0:03:03.5]} 3... dxe4 {[%clk 0:03:00.2]} 4.
Nxe4 {[%clk 0:03:05.4]} 4... Nf6 {[%clk 0:02:59.6]} 5. Qe2 {[%clk 0:03:06.5]}
5... Nxe4 {[%clk 0:02:59.6]} 6. Qxe4 {[%clk 0:03:07.6]} 6... Be6 {[%clk
0:03:00.3]} 7. Bc4 {[%clk 0:02:48.5]} 7... Bd5 {[%clk 0:02:51.9]} 8. Qe2 {[%clk
0:02:39.4]} 8... Bxc4 {[%clk 0:02:50.7]} 9. Qxc4 {[%clk 0:02:40.4]} 9... e6
{[%clk 0:02:52.3]} 10. O-O {[%clk 0:02:40.3]} 10... Be7 {[%clk 0:02:52.9]} 11.
d4 {[%clk 0:02:41.3]} 11... O-O {[%clk 0:02:53.6]} 12. Bf4 {[%clk 0:02:41.8]}
12... Nd7 {[%clk 0:02:54.1]} 13. Rfe1 {[%clk 0:02:37.7]} 13... Nb6 {[%clk
0:02:54]} 14. Qe2 {[%clk 0:02:35]} 14... Nd5 {[%clk 0:02:54.6]} 15. Bd2 {[%clk
0:02:35.1]} 15... Qc7 {[%clk 0:02:52.9]} 16. c4 {[%clk 0:02:34.7]} 16... Nf6
{[%clk 0:02:53.3]} 17. Bc3 {[%clk 0:02:34.3]} 17... Rfd8 {[%clk 0:02:52.7]} 18.
a4 {[%clk 0:02:31]} 18... Rac8 {[%clk 0:02:38.8]} 19. a5 {[%clk 0:02:31.2]}
19... Bf8 {[%clk 0:02:31.8]} 20. Qc2 {[%clk 0:02:31.3]} 20... c5 {[%clk
0:02:29.8]} 21. dxc5 {[%clk 0:02:17.8]} 21... Qxc5 {[%clk 0:02:30.7]} 22. Bxf6
{[%clk 0:02:04.1]} 22... gxf6 {[%clk 0:02:30.8]} 23. b3 {[%clk 0:02:01.1]} 23...
a6 {[%clk 0:02:28]} 24. Re4 {[%clk 0:01:45.3]} 24... f5 {[%clk 0:02:19.2]} 25.
Re5 {[%clk 0:01:45.5]} 25... Qd6 {[%clk 0:02:18.5]} 26. Ree1 {[%clk 0:01:31.5]}
26... Qd3 {[%clk 0:02:15.8]} 27. Ra2 {[%clk 0:01:17.7]} 27... Qxc2 {[%clk
0:02:12.4]} 28. Rxc2 {[%clk 0:01:18.3]} 28... Rd3 {[%clk 0:02:11.8]} 29. Re3
{[%clk 0:01:16.2]} 29... Rcd8 {[%clk 0:02:03.9]} 30. Kf1 {[%clk 0:01:12]} 30...
Bb4 {[%clk 0:02:01.8]} 31. Ke2 {[%clk 0:01:06]} 31... Rd1 {[%clk 0:01:56.1]} 32.
Ne5 {[%clk 0:00:58.5]} 32... R1d2+ {[%clk 0:01:47.8]} 33. Rxd2 {[%clk
0:00:58.4]} 33... Rxd2+ {[%clk 0:01:49.2]} 34. Kf3 {[%clk 0:00:59.1]} 34... Bxa5
{[%clk 0:01:49.4]} 35. Rd3 {[%clk 0:00:54]} 35... Rb2 {[%clk 0:01:35.8]} 36. Nd7
{[%clk 0:00:49]} 36... Be1 {[%clk 0:01:32.6]} 37. Kf4 {[%clk 0:00:46.5]} 37...
Rxf2+ {[%clk 0:01:29.4]} 38. Ke5 {[%clk 0:00:47.1]} 38... Kg7 {[%clk 0:01:29]}
39. Rg3+ {[%clk 0:00:46.4]} 39... Kh6 {[%clk 0:01:27.6]} 40. Rh3+ {[%clk
0:00:33.5]} 40... Kg7 {[%clk 0:01:15.8]} 41. Rg3+ {[%clk 0:00:34.3]} 41... Kh8
{[%clk 0:01:00]} 42. Rd3 {[%clk 0:00:19.8]} 42... Rxg2 {[%clk 0:00:53.9]} 43.
Kf6 {[%clk 0:00:20.2]} 43... Rd2 {[%clk 0:00:51.7]} 44. Rxd2 {[%clk 0:00:18.3]}
44... Bxd2 {[%clk 0:00:52.6]} 45. Kxf7 {[%clk 0:00:20.2]} 45... f4 {[%clk
0:00:52.2]} 46. Ne5 {[%clk 0:00:21.2]} 46... Bc3 {[%clk 0:00:53.3]} 47. Ng4
{[%clk 0:00:13.8]} 47... e5 {[%clk 0:00:42.8]} 48. Ke6 {[%clk 0:00:14.3]} 48...
e4 {[%clk 0:00:43.1]} 49. Kf5 {[%clk 0:00:15.5]} 49... e3 {[%clk 0:00:44.1]} 0-1